Workbook

Sheet Calculating IRR
B2: Calculating IRR
B4: Year | C4: Cash Flow
B5: 0 | C5: -1000
B6: 1 | C6: 200
B7: 2 | C7: 500
B8: 3 | C8: 200
B9: 4 | C9: 150
B10: 5 | C10: 500

Sheet Use of IRR Function
B2: Use of IRR Function | I2: Do It YourSelf
B4: Year | C4: Cash Flow | I4: Year | J4: Cash Flow
B5: 0 | C5: -1000 | I5: 0 | J5: -1000
B6: 1 | C6: 200 | I6: 1 | J6: 200
B7: 2 | C7: 500 | I7: 2 | J7: 500
B8: 3 | C8: 200 | I8: 3 | J8: 200
B9: 4 | C9: 150 | I9: 4 | J9: 150
B10: 5 | C10: 500 | I10: 5 | J10: 500
B12: IRR (Internal Rate of Return) | C12: =IRR(C5:C10) -> 0.1571494141 | I12: IRR (Internal Rate of Return)

Sheet Using VBA
B2: Using VBA | I2: Do It YourSelf
B4: Year | C4: Cash Flow | I4: Year | J4: Cash Flow
B5: 0 | C5: -1000 | I5: 0 | J5: -1000
B6: 1 | C6: 200 | I6: 1 | J6: 200
B7: 2 | C7: 500 | I7: 2 | J7: 500
B8: 3 | C8: 200 | I8: 3 | J8: 200
B9: 4 | C9: 150 | I9: 4 | J9: 150
B10: 5 | C10: 500 | I10: 5 | J10: 500
B12: IRR (Internal Rate of Return) | C12: 0.1571494141 | I12: IRR (Internal Rate of Return)

Sheet Manually Calculating
B2: Manually Calculating | I2: Do It YourSelf
B4: Year | C4: Cash Flow | D4: Present Value | I4: Year | J4: Cash Flow | K4: Present Value
B5: 0 | C5: -1000 | I5: 0 | J5: -1000
B6: 1 | C6: 200 | D6: =C6/(1+$C$13)^B6 -> 172.4137931 | I6: 1 | J6: 200 | K6: =J6/(1+$C$13)^I6 -> 172.4137931
B7: 2 | C7: 500 | D7: =C7/(1+$C$13)^B7 -> 371.5814507 | I7: 2 | J7: 500 | K7: =J7/(1+$C$13)^I7 -> 371.5814507
B8: 3 | C8: 200 | D8: 128.1315347 | I8: 3 | J8: 200 | K8: =J8/(1+$C$13)^I8 -> 128.1315347
B9: 4 | C9: 150 | D9: 82.84366468 | I9: 4 | J9: 150 | K9: =J9/(1+$C$13)^I9 -> 82.84366468
B10: 5 | C10: 500 | D10: 238.0565077 | I10: 5 | J10: 500 | K10: =J10/(1+$C$13)^I10 -> 238.0565077
B11: Sum of Present Values | D11: =SUM(D6:D10) -> 993.0269509 | I11: Sum of Present Values | K11: =SUM(K6:K10) -> 993.0269509
B13: IRR(Internal Rate of Return) | C13: 0.16 | I13: IRR(Internal Rate of Return)

Sheet Applying Goal Seek Feature
B2: Applying Goal Seek Feature | H2: Do It YourSelf
B4: Year | C4: Cash Flow | D4: Present Value | H4: Year | I4: Cash Flow | J4: Present Value
B5: 0 | C5: -1000 | H5: 0 | I5: -1000
B6: 1 | C6: 200 | D6: =C6/(1+$C$13)^B6 -> 172.8385268 | H6: 1 | I6: 200 | J6: =I6/(1+$C$13)^H6 -> 172.8385268
B7: 2 | C7: 500 | D7: =C7/(1+$C$13)^B7 -> 373.4144543 | H7: 2 | I7: 500 | J7: =I7/(1+$C$13)^H7 -> 373.4144543
B8: 3 | C8: 200 | D8: =C8/(1+$C$13)^B8 -> 129.0808083 | H8: 3 | I8: 200 | J8: =I8/(1+$C$13)^H8 -> 129.0808083
B9: 4 | C9: 150 | D9: =C9/(1+$C$13)^B9 -> 83.66301282 | H9: 4 | I9: 150 | J9: =I9/(1+$C$13)^H9 -> 83.66301282
B10: 5 | C10: 500 | D10: =C10/(1+$C$13)^B10 -> 241.003198 | H10: 5 | I10: 500 | J10: =I10/(1+$C$13)^H10 -> 241.003198
B11: Sum of Present Values | D11: =SUM(D6:D10) -> 1000 | H11: Sum of Present Values | J11: =SUM(J6:J10) -> 1000
B13: IRR (Internal Rate of Return) | C13: 0.157149414 | H13: IRR (Internal Rate of Return)

Sheet Using XIRR Function
B2: Using XIRR Function for Uneven Cash Flow | H2: Do It YourSelf
B4: Date | C4: Net Cash Flow | H4: Date | I4: Net Cash Flow
B5: 2017-12-31 | C5: -200000 | H5: 2017-12-31 | I5: -200000
B6: 2018-07-30 | C6: -9000 | H6: 2018-07-30 | I6: -9000
B7: 2018-08-12 | C7: -9000 | H7: 2018-08-12 | I7: -9000
B8: 2019-05-26 | C8: 7500 | H8: 2019-05-26 | I8: 7500
B9: 2019-12-27 | C9: 19000 | H9: 2019-12-27 | I9: 19000
B10: 2020-11-07 | C10: 22000 | H10: 2020-11-07 | I10: 22000
B11: 2020-12-18 | C11: 24000 | H11: 2020-12-18 | I11: 24000
B12: 2021-12-15 | C12: 25000 | H12: 2021-12-15 | I12: 25000
B13: 2022-02-13 | C13: 26000 | H13: 2022-02-13 | I13: 26000
B14: 2022-08-02 | C14: 26000 | H14: 2022-08-02 | I14: 26000
B15: 2022-11-22 | C15: 60000 | H15: 2022-11-22 | I15: 60000
B16: 2024-03-23 | C16: 26000 | H16: 2024-03-23 | I16: 26000
B17: 2024-06-10 | C17: 26000 | H17: 2024-06-10 | I17: 26000
B19: IRR (Internal Rate of Return) | C19: =XIRR(C5:C17,B5:B17) -> 0.04388585985 | H19: IRR (Internal Rate of Return)

Sheet Monthly Cash Flow
B2: Calculating IRR for Monthly Cash Flow | I2: Do It YourSelf
C4: Date | D4: Net Cash Flow | J4: Date | K4: Net Cash Flow
B5: Initial investment | C5: 2017-12-31 | D5: -200000 | I5: Initial investment | J5: 2017-12-31 | K5: -200000
B6: Month 1 | C6: 2018-01-31 | D6: -9000 | I6: Month 1 | J6: 2018-01-31 | K6: -9000
B7: Month 2 | C7: 2018-02-28 | D7: -9000 | I7: Month 2 | J7: 2018-02-28 | K7: -9000
B8: Month 3 | C8: 2018-03-31 | D8: 7500 | I8: Month 3 | J8: 2018-03-31 | K8: 7500
B9: Month 4 | C9: 2018-04-30 | D9: 19000 | I9: Month 4 | J9: 2018-04-30 | K9: 19000
B10: Month 5 | C10: 2018-05-31 | D10: 22000 | I10: Month 5 | J10: 2018-05-31 | K10: 22000
B11: Month 6 | C11: 2018-06-30 | D11: 24000 | I11: Month 6 | J11: 2018-06-30 | K11: 24000
B12: Month 7 | C12: 2018-07-31 | D12: 25000 | I12: Month 7 | J12: 2018-07-31 | K12: 25000
B13: Month 8 | C13: 2018-08-31 | D13: 26000 | I13: Month 8 | J13: 2018-08-31 | K13: 26000
B14: Month 9 | C14: 2018-09-30 | D14: 26000 | I14: Month 9 | J14: 2018-09-30 | K14: 26000
B15: Month 10 | C15: 2018-10-31 | D15: 26000 | I15: Month 10 | J15: 2018-10-31 | K15: 26000
B16: Month 11 | C16: 2018-11-30 | D16: 26000 | I16: Month 11 | J16: 2018-11-30 | K16: 26000
B17: Month 12 | C17: 2018-12-31 | D17: 26000 | I17: Month 12 | J17: 2018-12-31 | K17: 26000
B19: IRR (Internal Rate of Return) | C19: IRR | D19: =IRR(D5:D17)*12 -> 0.06504448223 | I19: IRR (Internal Rate of Return) | J19: IRR
C20: XIRR | D20: =XIRR(D5:D17,C5:C17) -> 0.06722469628 | J20: XIRR

Sheet Using MIRR Function
B2: Using MIRR Function | I2: Do It YourSelf
B4: Period | C4: Cash Flow | I4: Period | J4: Cash Flow
B5: 0 | C5: -5000 | I5: 0 | J5: -5000
B6: 1 | C6: 700 | I6: 1 | J6: 700
B7: 2 | C7: 900 | I7: 2 | J7: 900
B8: 3 | C8: 1600 | I8: 3 | J8: 1600
B9: 4 | C9: 1500 | I9: 4 | J9: 1500
B10: 5 | C10: 700 | I10: 5 | J10: 700
B12: Finance rate | C12: 0.12 | D12: <-- You took a bank loan to invest 5000 at this rate | I12: Finance rate
B13: Reinvestment rate | C13: 0.2 | D13: <-- You're reinveting your money with a new project at this rate | I13: Reinvestment rate
B15: MIRR | C15: =MIRR(C5:C10,C12,C13) -> 0.09331224708 | I15: MIRR

Sheet Calculating IRR for Real Estate
B2: Calculating IRR for Real Estate | L2: Do It YourSelf
C4: Initial Investment | D4: Year 1 | E4: Year 2 | F4: Year 3 | G4: Year 4 | H4: Year 5 | M4: Initial Investment | N4: Year 1 | O4: Year 2 | P4: Year 3 | Q4: Year 4 | R4: Year 5
C5: -200000 | M5: -200000
B6: Rental Cash Flow | D6: 14000 | E6: 15200 | F6: 15500 | G6: 16000 | H6: 16800 | L6: Rental Cash Flow | N6: 14000 | O6: 15200 | P6: 15500 | Q6: 16000 | R6: 16800
B7: Resale Proceeds | H7: 350000 | L7: Resale Proceeds | R7: 350000
B8: Total Cash Flow | C8: =SUM(C5:C7) -> -200000 | D8: =SUM(D5:D7) -> 14000 | E8: 15200 | F8: 15500 | G8: 16000 | H8: 366800 | L8: Total Cash Flow
B10: IRR | C10: =IRR(C8:H8) -> 0.1810540143 | L10: IRR

Sheet IRR Compared
B2: Comparing IRR
B4: Project A | E4: Project B
B5: Initial Investment | C5: -5000 | E5: Initial Investment | F5: -2000
B6: Year 1 | C6: 700 | E6: Year 1 | F6: 400
B7: Year 2 | C7: 900 | E7: Year 2 | F7: 700
B8: Year 3 | C8: 1600 | E8: Year 3 | F8: 500
B9: Year 4 | C9: 1500 | E9: Year 4 | F9: 400
B10: Year 5 | C10: 700 | E10: Year 5 | F10: 300
B12: IRR (A) | C12: =IRR(C5:C10) -> 0.0251961752 | E12: IRR( B) | F12: =IRR(F5:F10) -> 0.05231449481
